fUST/lending_fUST_20250112
["ID","MTS","AMOUNT","RATE_DAILY","PERIOD"]
[348602047,1736665773122,-500.0,0.00019178,2]
[348602048,1736665773144,-504.21121599,0.00019178,2]
[348602049,1736665773166,-151.0,0.00019178,2]
[348602050,1736665773187,-151.0,0.00019178,2]
[348602051,1736665773208,-500.0,0.00019178,2]
[348602052,1736665773231,-2150.83,0.00019178,2]
[348602053,1736665773254,-1255.6,0.00019178,2]
[348602054,1736665773283,-500.0,0.00019178,2]
[348602055,1736665773306,-540.39,0.00019452,3]
[348602056,1736665773328,-500.0,0.00019452,3]
[348602057,1736665773351,-500.0,0.00019452,3]
[348602058,1736665773375,-2150.83,0.00019452,3]
[348602059,1736665773398,-485.91376585,0.00019452,3]
[348602214,1736665838508,-300.0,0.00019177,2]
[348602216,1736665838518,-500.0,0.00019178,2]
[348602218,1736665838527,-500.0,0.00019178,2]
[348602220,1736665838537,-500.0,0.00019178,2]
[348602222,1736665838547,-500.0,0.00019178,2]
[348602224,1736665838557,-500.0,0.00019178,2]
[348602226,1736665838567,-500.0,0.00019178,2]
[348602227,1736665838576,-791.78,0.00019178,2]
[348602228,1736665838585,-500.0,0.00019178,2]
[348602229,1736665838595,-500.0,0.00019178,2]
[348602231,1736665838604,-500.0,0.00019178,2]
[348602233,1736665838614,-500.0,0.00019178,2]
[348602235,1736665838624,-505.03810603,0.00019178,2]
[348602238,1736665838633,-500.0,0.00019178,2]
[348602240,1736665838643,-1044.87,0.00019178,2]
[348602242,1736665838653,-500.0,0.00019178,2]
[348602244,1736665838663,-528.97,0.00019178,2]
[348602246,1736665838672,-500.0,0.00019178,2]
[348602248,1736665838682,-500.0,0.00019178,2]
[348602250,1736665838691,-500.0,0.00019178,2]
[348602252,1736665838701,-500.0,0.00019178,2]
[348602254,1736665838710,-1141.07,0.00019178,2]
[348602256,1736665838719,-500.0,0.00019178,2]
[348602258,1736665838729,-500.0,0.00019178,2]
[348602260,1736665838739,-500.0,0.00019178,2]
[348602262,1736665838748,-500.0,0.00019178,2]
[348602264,1736665838758,-500.0,0.00019178,2]
[348602266,1736665838767,-500.0,0.00019178,2]
[348602268,1736665838776,-500.0,0.00019178,2]
[348602270,1736665838786,-500.0,0.00019178,2]
[348602272,1736665838795,-586.6,0.00019178,2]
[348602274,1736665838804,-32.74882325,0.00019178,2]
[348602645,1736666023238,171.655359,0.00013973,2]
[348602647,1736666737190,-347.92031054,0.000188,2]
[348602648,1736666737212,-425.166,0.000189,2]
[348602649,1736666737234,-642.82491049,0.000189,2]
[348602650,1736666737256,-332.8536391,0.00019078,2]
[348602651,1736666737278,-249.49238485,0.00019078,2]
[348602652,1736666737299,-500.0,0.00019173,2]
[348602653,1736666737321,-502.11681342,0.00019173,2]
[348602654,1736666737342,-267.01221526,0.00019173,2]
[348602655,1736666737362,-500.0,0.00019173,2]
[348602656,1736666737383,-13.22593805,0.00019173,2]
[348602657,1736666757093,-486.77406195,0.00019173,2]
[348602658,1736666757114,-500.0,0.00019173,2]
[348602659,1736666757136,-300.0,0.00019176,2]
[348602660,1736666757158,-500.0,0.00019177,2]
[348602661,1736666757179,-500.0,0.00019177,2]
[348602662,1736666757202,-350.12594846,0.00019177,2]
[348602663,1736666838136,-189.45297477,0.00018434,2]
[348602664,1736666854113,-70.93561093,0.00018434,2]
[348602665,1736666854139,-3639.48054885,0.00018904,7]
[348602666,1736666854177,-1140.28071903,0.00019078,2]
[348602667,1736666854211,-500.0,0.00019173,2]
[348602668,1736666854257,-500.0,0.00019173,2]
[348602669,1736666854295,-496.53014447,0.00019173,2]
[348602670,1736666854357,-500.0,0.00019173,2]
[348602671,1736666854396,-500.0,0.00019173,2]
[348602672,1736666854446,-206.20639884,0.00019176,2]
[348602693,1736666949105,-562.64700563,0.000189,2]
[348602694,1736666949125,-1147.2038612,0.00019078,2]
[348602695,1736666949147,-300.0,0.00019176,2]
[348602696,1736666949170,-149.87405154,0.00019177,2]
[348602697,1736666949194,-500.0,0.00019177,2]
[348602698,1736666949219,-500.0,0.00019177,2]
[348602699,1736666949243,-321.8345512,0.00019177,2]
[348602700,1736666949264,-228.04016246,0.00019177,2]
[348602701,1736666949285,-255.48695394,0.00019177,2]
[348602702,1736666949307,-500.0,0.00019177,2]
[348602703,1736666949329,-525.12458892,0.00019177,2]
[348602704,1736666949350,-159.62811372,0.00019177,2]
[348602705,1736666949371,-204.92962116,0.00019178,2]
[348602706,1736666949392,-503.04208348,0.00019178,2]
[348602707,1736666949414,-501.04457165,0.00019178,2]
[348602708,1736666949436,-506.07222546,0.00019178,2]
[348602709,1736666949457,-506.35461972,0.00019178,2]
[348602710,1736666949478,-495.66549205,0.00019178,2]
[348602711,1736666949500,-453.24663508,0.00019178,2]
[348602712,1736666949522,-500.0,0.00019178,2]
[348602713,1736666949543,-500.0,0.00019178,2]
[348602714,1736666949568,-500.0,0.00019178,2]
[348602715,1736666949589,-500.0,0.00019178,2]
[348602716,1736666949614,-501.55438602,0.00019178,2]
[348602717,1736666949635,-500.0,0.00019178,2]
[348602718,1736666949656,-500.0,0.00019178,2]
[348602719,1736666949678,-500.0,0.00019178,2]
[348602720,1736666949701,-500.0,0.00019178,2]
[348602721,1736666949721,-171.43960605,0.00019178,2]
[348602722,1736666949742,-620.46,0.00019178,2]
[348602723,1736666949763,-500.0,0.00019178,2]
[348602724,1736666949784,-500.0,0.00019178,2]
[348602725,1736666949806,-500.0,0.00019178,2]
[348602726,1736666949826,-500.0,0.00019178,2]
[348602727,1736666949847,-500.0,0.00019178,2]
[348602728,1736666949867,-500.0,0.00019178,2]
[348602729,1736666949888,-501.54170248,0.00019178,2]
[348602730,1736666949908,-500.0,0.00019178,2]
[348602731,1736666949930,-1000.0,0.00019178,2]
[348602732,1736666949952,-500.0,0.00019178,2]
[348602733,1736666949975,-500.0,0.00019178,2]
[348602734,1736666949996,-241.43560908,0.00019178,2]
[348602735,1736666950017,-500.0,0.00019178,2]
[348602736,1736666950038,-500.0,0.00019178,2]
[348602737,1736666950060,-500.0,0.00019178,2]
[348602738,1736666950080,-500.0,0.00019178,2]
[348602739,1736666950104,-500.0,0.00019178,2]
[348602740,1736666950124,-502.43909269,0.00019178,2]
[348602741,1736666950145,-505.3963837,0.00019178,2]
[348602742,1736666950168,-5214.54,0.00019178,2]
[348602743,1736666950194,-500.0,0.00019178,2]
[348602744,1736666950218,-500.0,0.00019178,2]
[348602745,1736666950238,-576.28,0.00019178,2]
[348602746,1736666950260,-576.28,0.00019178,2]
[348602747,1736666950283,-576.28,0.00019178,2]
[348602748,1736666950304,-576.28,0.00019178,2]
[348602749,1736666950325,-500.0,0.00019178,2]
[348602750,1736666950346,-500.0,0.00019178,2]
[348602751,1736666950366,-508.58556569,0.00019178,2]
[348602752,1736666950387,-500.0,0.00019178,2]
[348602753,1736666950407,-512.75450292,0.00019178,2]
[348602754,1736666950427,-500.0,0.00019178,2]
[348602755,1736666950447,-508.94670912,0.00019178,2]
[348602756,1736666950468,-500.0,0.00019178,2]
[348602757,1736666950488,-520.19599736,0.00019178,2]
[348602758,1736666950511,-500.0,0.00019178,2]
[348602759,1736666950532,-500.46929227,0.00019178,2]
[348602760,1736666950669,-519.66142301,0.00019178,2]
[348602761,1736666950692,-500.0,0.00019178,2]
[348602762,1736666950713,-501.62925538,0.00019178,2]
[348602763,1736666950733,-500.0,0.00019178,2]
[348602764,1736666950753,-508.59332797,0.00019178,2]
[348602765,1736666950775,-511.64698148,0.00019178,2]
[348602766,1736666950795,-200.0,0.00019178,2]
[348602767,1736666950816,-500.0,0.00019178,2]
[348602768,1736666950838,-3388.67,0.00019178,2]
[348602769,1736666950858,-504.37229014,0.00019178,2]
[348602770,1736666950878,-500.0,0.00019178,2]
[348602771,1736666950898,-507.48841196,0.00019178,2]
[348602772,1736666950918,-608.1524699,0.00019178,2]
[348602773,1736666950939,-500.0,0.00019178,2]
[348602774,1736666950960,-500.0,0.00019178,2]
[348602775,1736666950980,-500.0,0.00019178,2]
[348602776,1736666951002,-508.36117078,0.00019178,2]
[348602777,1736666951022,-502.44828887,0.00019178,2]
[348602778,1736666951045,-500.0,0.00019178,2]
[348602779,1736666951068,-278.36772,0.00019178,2]
[348602780,1736666951089,-278.36772,0.00019178,2]
[348602781,1736666951110,-278.36772,0.00019178,2]
[348602782,1736666951130,-278.36772,0.00019178,2]
[348602783,1736666951150,-278.36772,0.00019178,2]
[348602784,1736666951170,-278.36772,0.00019178,2]
[348602785,1736666951191,-278.36772,0.00019178,2]
[348602786,1736666951211,-278.36772,0.00019178,2]
[348602787,1736666951232,-278.36772,0.00019178,2]
[348602788,1736666951252,-278.36772,0.00019178,2]
[348602789,1736666951273,-502.25412724,0.00019178,2]
[348602790,1736666951293,-1054.825855,0.00019178,2]
[348602791,1736666951315,-1054.825855,0.00019178,2]
[348602792,1736666951335,-1054.825855,0.00019178,2]
[348602793,1736666951356,-1054.825855,0.00019178,2]
[348602794,1736666951376,-500.0,0.00019178,2]
[348602795,1736666951396,-1054.825855,0.00019178,2]
[348602796,1736666951417,-1054.825855,0.00019178,2]
[348602797,1736666951437,-1054.825855,0.00019178,2]
[348602798,1736666951458,-500.86638931,0.00019178,2]
[348602799,1736666951479,-1054.825855,0.00019178,2]
[348602800,1736666951500,-500.0,0.00019178,2]
[348602801,1736666951522,-572.22,0.00019178,2]
[348602802,1736666951544,-500.0,0.00019178,2]
[348602803,1736666951567,-500.0,0.00019178,2]
[348602804,1736666951590,-636.73,0.00019178,2]
[348602805,1736666951614,-501.92152736,0.00019178,2]
[348602806,1736666951637,-500.0,0.00019178,2]
[348602807,1736666951658,-500.0,0.00019178,2]
[348602808,1736666951680,-514.79873477,0.00019178,2]
[348602809,1736666951701,-544.31621933,0.00019178,2]
[348602810,1736666951723,-500.0,0.00019178,2]
[348602811,1736666951745,-566.18834541,0.00019178,2]
[348602812,1736666951766,-500.0,0.00019178,2]
[348602813,1736666951788,-500.0,0.00019178,2]
[348602814,1736666951810,-500.0,0.00019178,2]
[348602815,1736666951831,-500.0,0.00019178,2]
[348602816,1736666951852,-500.0,0.00019178,2]
[348602817,1736666951873,-500.0,0.00019178,2]
[348602818,1736666951894,-500.0,0.00019178,2]
[348602819,1736666951920,-502.32741563,0.00019178,2]
[348602820,1736666951941,-500.0,0.00019178,2]
[348602821,1736666951962,-504.70878124,0.00019178,2]
[348602822,1736666951984,-500.0,0.00019178,2]
[348602823,1736666952006,-503.62050777,0.00019178,2]
[348602824,1736666952028,-297.02193192,0.00019178,2]
[348602825,1736666952392,-202.97806808,0.00019178,2]
[348602826,1736666952413,-500.0,0.00019178,2]
[348602827,1736666952435,-500.0,0.00019178,2]
[348602828,1736666952456,-500.0,0.00019178,2]
[348602829,1736666952477,-569.59109836,0.00019178,2]
[348602830,1736666952499,-500.0,0.00019178,2]
[348602831,1736666952521,-500.0,0.00019178,2]
[348602832,1736666952542,-500.0,0.00019178,2]
[348602833,1736666952665,-500.0,0.00019178,2]
[348602834,1736666952687,-550.49926093,0.00019178,2]
[348602835,1736666952708,-500.0,0.00019178,2]
[348602836,1736666952729,-558.06022588,0.00019178,2]
[348602837,1736666952749,-509.71064536,0.00019178,2]
[348602838,1736666952770,-500.0,0.00019178,2]
[348602839,1736666952792,-510.67129316,0.00019178,2]
[348602840,1736666952812,-927.46,0.00019178,2]
[348602841,1736666952833,-500.0,0.00019178,2]
[348602842,1736666952853,-517.03788163,0.00019178,2]
[348602843,1736666952872,-647.13487109,0.00019178,2]
[348602844,1736666952892,-557.25,0.00019178,2]
[348602845,1736666952912,-500.0,0.00019178,2]
[348602846,1736666952933,-500.0,0.00019178,2]
[348602847,1736666952954,-500.0,0.00019178,2]
[348602848,1736666952975,-500.0,0.00019178,2]
[348602849,1736666952996,-500.0,0.00019178,2]
[348602850,1736666953018,-564.82215426,0.00019178,2]
[348602851,1736666953039,-541.31,0.00019178,2]
[348602852,1736666953060,-500.0,0.00019178,2]
[348602853,1736666953080,-500.0,0.00019178,2]
[348602854,1736666953100,-500.0,0.00019178,2]
[348602855,1736666953119,-501.25459243,0.00019178,2]
[348602856,1736666953139,-441.93915801,0.00019178,2]
[348602857,1736666953160,-500.0,0.00019178,2]
[348602858,1736666953179,-501.18236668,0.00019178,2]
[348602859,1736666953199,-502.0511823,0.00019178,2]
[348602860,1736666953220,-500.0,0.00019178,2]
[348602861,1736666953241,-1361.39,0.00019178,2]
[348602862,1736666953263,-500.0,0.00019178,2]
[348602863,1736666953284,-502.86048209,0.00019178,2]
[348602864,1736666953305,-500.0,0.00019178,2]
[348602865,1736666953327,-500.0,0.00019178,2]
[348602866,1736666953348,-500.0,0.00019178,2]
[348602867,1736666953370,-501.43054228,0.00019178,2]
[348602868,1736666953391,-500.0,0.00019178,2]
[348602869,1736666953414,-500.0,0.00019178,2]
[348602870,1736666953435,-503.35557705,0.00019178,2]
[348602871,1736666953457,-505.3461421,0.00019178,2]
[348602872,1736666953477,-500.0,0.00019178,2]
[348602873,1736666953500,-500.0,0.00019178,2]
[348602874,1736666953523,-500.0,0.00019178,2]
[348602875,1736666953546,-500.0,0.00019178,2]
[348602876,1736666953568,-500.0,0.00019178,2]
[348602877,1736666953591,-500.0,0.00019178,2]
[348602878,1736666953615,-500.0,0.00019178,2]
[348602879,1736666953637,-500.0,0.00019178,2]
[348602880,1736666953658,-500.0,0.00019178,2]
[348602881,1736666953679,-546.18,0.00019178,2]
[348602882,1736666953700,-1399.32,0.00019178,2]
[348602883,1736666953722,-151.0,0.00019178,2]
[348602884,1736666953743,-211.572349,0.00019178,2]
[348602885,1736666953764,-561.5037145,0.00019178,2]
[348602886,1736666953785,-185.60237535,0.00019178,2]
[348602887,1736666953804,-519.32634292,0.00019178,2]
[348602888,1736666953827,-1187.65,0.00019178,2]
[348602889,1736666953847,-511.88113369,0.00019178,2]
[348602890,1736666953868,-151.0,0.00019178,2]
[348602891,1736666953888,-151.0,0.00019178,2]
[348602892,1736666953909,-507.74587687,0.00019178,2]
[348602893,1736666953930,-500.0,0.00019178,2]
[348602894,1736666953951,-500.0,0.00019178,2]
[348602895,1736666953973,-500.0,0.00019178,2]
[348602896,1736666953995,-500.0,0.00019178,2]
[348602897,1736666954019,-633.77,0.00019178,2]
[348602898,1736666954040,-501.27301503,0.00019178,2]
[348602899,1736666954060,-500.0,0.00019178,2]
[348602900,1736666954082,-484.418457,0.00019178,2]
[348602901,1736666954105,-484.418457,0.00019178,2]
[348602902,1736666954126,-484.418457,0.00019178,2]
[348602903,1736666954148,-484.418457,0.00019178,2]
[348602904,1736666954169,-484.418457,0.00019178,2]
[348602905,1736666954190,-500.0,0.00019178,2]
[348602906,1736666954211,-500.0,0.00019178,2]
[348602907,1736666954232,-484.418457,0.00019178,2]
[348602908,1736666954253,-484.418457,0.00019178,2]
[348602909,1736666954275,-484.418457,0.00019178,2]
[348602910,1736666954296,-484.418457,0.00019178,2]
[348602911,1736666954319,-530.36,0.00019178,2]
[348602912,1736666954340,-484.418457,0.00019178,2]
[348602913,1736666954360,-510.75402698,0.00019178,2]
[348602914,1736666954381,-500.0,0.00019178,2]
[348602915,1736666954402,-1065.55,0.00019178,2]
[348602916,1736666954423,-500.96004803,0.00019178,2]
[348602917,1736666954445,-500.0,0.00019178,2]
[348602918,1736666954467,-500.0,0.00019178,2]
[348602919,1736666954489,-500.0,0.00019178,2]
[348602920,1736666954512,-500.0,0.00019178,2]
[348602921,1736666954536,-500.0,0.00019178,2]
[348602922,1736666954558,-483.2521163,0.00019178,2]
[348602923,1736666954580,-500.0,0.00019178,2]
[348602924,1736666954602,-519.68313211,0.00019178,2]
[348602925,1736666954626,-500.0,0.00019178,2]
[348602926,1736666954648,-500.0,0.00019178,2]
[348602927,1736666954670,-965.47,0.00019178,2]
[348602928,1736666954780,-500.0,0.00019178,2]
[348602929,1736666954801,-500.0,0.00019178,2]
[348602930,1736666954824,-500.0,0.00019178,2]
[348602931,1736666954846,-500.0,0.00019178,2]
[348602932,1736666954868,-500.0,0.00019178,2]
[348602933,1736666954888,-516.37941827,0.00019178,2]
[348602934,1736666954909,-745.0,0.00019178,2]
[348602935,1736666954930,-502.25905804,0.00019178,2]
[348602936,1736666954951,-500.0,0.00019178,2]
[348602937,1736666954971,-500.0,0.00019178,2]
[348602938,1736666954991,-500.0,0.00019178,2]
[348602939,1736666955012,-500.0,0.00019178,2]
[348602940,1736666955032,-503.33106717,0.00019178,2]
[348602941,1736666955054,-500.0,0.00019178,2]
[348602942,1736666955076,-500.0,0.00019178,2]
[348602943,1736666955097,-500.0,0.00019178,2]
[348602944,1736666955118,-500.0,0.00019178,2]
[348602945,1736666955138,-500.0,0.00019178,2]
[348602946,1736666955159,-514.15261162,0.00019178,2]
[348602947,1736666955178,-500.0,0.00019178,2]
[348602948,1736666955198,-501.32530202,0.00019178,2]
[348602949,1736666955218,-500.0,0.00019178,2]
[348602950,1736666955239,-500.0,0.00019178,2]
[348602951,1736666955260,-500.0,0.00019178,2]
[348602952,1736666955281,-528.48245023,0.00019178,2]
[348602953,1736666955301,-500.0,0.00019178,2]
[348602954,1736666955322,-500.0,0.00019178,2]
[348602955,1736666955342,-500.0,0.00019178,2]
[348602956,1736666955363,-1125.97,0.00019178,2]
[348602957,1736666955384,-505.13716165,0.00019178,2]
[348602958,1736666955404,-500.0,0.00019178,2]
[348602959,1736666955425,-500.0,0.00019178,2]
[348602960,1736666955446,-500.0,0.00019178,2]
[348602961,1736666955469,-501.09404817,0.00019178,2]
[348602962,1736666955490,-500.0,0.00019178,2]
[348602963,1736666955514,-542.31,0.00019178,2]
[348602964,1736666955537,-500.0,0.00019178,2]
[348602965,1736666955558,-502.89385962,0.00019178,2]
[348602966,1736666955580,-505.33346594,0.00019178,2]
[348602967,1736666955603,-500.0,0.00019178,2]
[348602968,1736666955631,-512.68794293,0.00019178,2]
[348602969,1736666955654,-492.70023162,0.00019178,2]
[348602970,1736666955676,-500.0,0.00019178,2]
[348602971,1736666955699,-500.0,0.00019178,2]
[348602972,1736666955719,-500.0,0.00019178,2]
[348602973,1736666955739,-514.01501,0.00019178,2]
[348602974,1736666955762,-500.0,0.00019178,2]
[348602975,1736666955787,-500.0,0.00019178,2]
[348602976,1736666955808,-501.62632194,0.00019178,2]
[348602977,1736666955829,-500.0,0.00019178,2]
[348602978,1736666955850,-500.0,0.00019178,2]
[348602979,1736666955871,-192.78116122,0.00019178,2]
[348602980,1736666955893,-500.0,0.00019178,2]
[348602981,1736666955916,-500.0,0.00019178,2]
[348602982,1736666955938,-500.0,0.00019178,2]
[348602983,1736666955961,-500.0,0.00019178,2]
[348602984,1736666955983,-233.226584,0.00019178,2]
[348602985,1736666956005,-233.226584,0.00019178,2]
[348602986,1736666956026,-233.226584,0.00019178,2]
[348602987,1736666956047,-233.226584,0.00019178,2]
[348602988,1736666956068,-233.226584,0.00019178,2]
[348602989,1736666956088,-500.0,0.00019178,2]
[348602990,1736666956108,-500.0,0.00019178,2]
[348602991,1736666956129,-233.226584,0.00019178,2]
[348602992,1736666956150,-500.0,0.00019178,2]
[348602993,1736666956170,-500.0,0.00019178,2]
[348602994,1736666956191,-500.0,0.00019178,2]
[348602995,1736666956212,-233.226584,0.00019178,2]
[348602996,1736666956233,-500.0,0.00019178,2]
[348602997,1736666956255,-233.226584,0.00019178,2]
[348602998,1736666956278,-233.226584,0.00019178,2]
[348602999,1736666956300,-1488.9,0.00019178,2]
[348603000,1736666956321,-233.226584,0.00019178,2]
[348603001,1736666956342,-233.226584,0.00019178,2]
[348603002,1736666956363,-233.226584,0.00019178,2]
[348603003,1736666956384,-500.0,0.00019178,2]
[348603004,1736666956408,-661.85,0.00019178,2]
[348603005,1736666956430,-500.0,0.00019178,2]
[348603006,1736666956452,-500.0,0.00019178,2]
[348603007,1736666956472,-500.0,0.00019178,2]
[348603008,1736666956493,-472.90682558,0.00019178,2]
[348603009,1736666956515,-500.90890603,0.00019178,2]
[348603010,1736666956538,-620.8,0.00019178,2]
[348603011,1736666956560,-2572.03,0.00019178,2]
[348603012,1736666956583,-2572.03,0.00019178,2]
[348603013,1736666956607,-2572.03,0.00019178,2]
[348603014,1736666956632,-2572.03,0.00019178,2]
[348603015,1736666956653,-500.0,0.00019178,2]
[348603016,1736666956674,-500.0,0.00019178,2]
[348603017,1736666956696,-500.0,0.00019178,2]
[348603018,1736666956716,-500.0,0.00019178,2]
[348603019,1736666956820,-501.59112413,0.00019178,2]
[348603020,1736666956841,-500.0,0.00019178,2]
[348603021,1736666956860,-515.15506402,0.00019178,2]
[348603022,1736666956883,-2009.04,0.00019178,2]
[348603023,1736666956904,-500.0,0.00019178,2]
[348603024,1736666956924,-500.0,0.00019178,2]
[348603025,1736666956944,-500.0,0.00019178,2]
[348603026,1736666956965,-500.0,0.00019178,2]
[348603027,1736666956985,-500.0,0.00019178,2]
[348603028,1736666957007,-500.0,0.00019178,2]
[348603029,1736666957027,-508.24763184,0.00019178,2]
[348603030,1736666957050,-500.0,0.00019178,2]
[348603031,1736666957071,-500.0,0.00019178,2]
[348603032,1736666957092,-500.0,0.00019178,2]
[348603033,1736666957114,-500.0,0.00019178,2]
[348603034,1736666957137,-539.86,0.00019178,2]
[348603035,1736666957159,-1196.23,0.00019178,2]
[348603036,1736666957180,-500.0,0.00019178,2]
[348603037,1736666957202,-500.0,0.00019178,2]
[348603038,1736666957223,-500.0,0.00019178,2]
[348603039,1736666957242,-500.0,0.00019178,2]
[348603040,1736666957264,-500.0,0.00019178,2]
[348603041,1736666957285,-500.0,0.00019178,2]
[348603042,1736666957306,-450.56579906,0.00019178,2]
[348603043,1736666957327,-501.67582649,0.00019178,2]
[348603044,1736666957347,-506.63588211,0.00019178,2]
[348603045,1736666957369,-500.0,0.00019178,2]
[348603046,1736666957389,-537.03,0.00019178,2]
[348603047,1736666957410,-505.73126927,0.00019178,2]
[348603048,1736666957431,-500.0,0.00019178,2]
[348603049,1736666957454,-504.14,0.00019178,2]
[348603050,1736666957474,-505.47072764,0.00019178,2]
[348603051,1736666957497,-2053.54,0.00019178,2]
[348603052,1736666957519,-500.0,0.00019178,2]
[348603053,1736666957540,-500.0,0.00019178,2]
[348603054,1736666957563,-1108.36,0.00019178,2]
[348603055,1736666957585,-500.0,0.00019178,2]
[348603056,1736666957611,-500.0,0.00019178,2]
[348603057,1736666957633,-500.0,0.00019178,2]
[348603058,1736666957654,-500.0,0.00019178,2]
[348603059,1736666957675,-500.0,0.00019178,2]
[348603060,1736666957697,-500.0,0.00019178,2]
[348603061,1736666957723,-838.34,0.00019178,2]
[348603062,1736666957747,-507.31252538,0.00019178,2]
[348603063,1736666957770,-500.0,0.00019178,2]
[348603064,1736666957792,-500.0,0.00019178,2]
[348603065,1736666957813,-500.0,0.00019178,2]
[348603066,1736666957836,-500.0,0.00019178,2]
[348603067,1736666957858,-500.0,0.00019178,2]
[348603068,1736666957879,-525.98111908,0.00019178,2]
[348603069,1736666957902,-527.76,0.00019178,2]
[348603070,1736666957923,-500.0,0.00019178,2]
[348603071,1736666957946,-500.0,0.00019178,2]
[348603072,1736666957968,-1139.57,0.00019178,2]
[348603073,1736666957991,-500.0,0.00019178,2]
[348603074,1736666958012,-500.0,0.00019178,2]
[348603075,1736666958033,-509.9387977,0.00019178,2]
[348603076,1736666958055,-2074.86,0.00019178,2]
[348603077,1736666958079,-2074.86,0.00019178,2]
[348603078,1736666958101,-2074.86,0.00019178,2]
[348603079,1736666958123,-2074.86,0.00019178,2]
[348603080,1736666958145,-2074.86,0.00019178,2]
[348603081,1736666958168,-1372.61114076,0.00019178,2]
[348603082,1736666968139,-421.823,0.000189,2]
[348603083,1736666968162,-702.24885924,0.00019178,2]
[348603084,1736666968183,-2074.86,0.00019178,2]
[348603085,1736666968204,-503.51406229,0.00019178,2]
[348603086,1736666968225,-2074.86,0.00019178,2]
[348603087,1736666968246,-2074.86,0.00019178,2]
[348603088,1736666968267,-2074.86,0.00019178,2]
[348603089,1736666968288,-2074.86,0.00019178,2]
[348603090,1736666968309,-2074.86,0.00019178,2]
[348603091,1736666968329,-500.0,0.00019178,2]
[348603092,1736666968350,-2074.86,0.00019178,2]
[348603093,1736666968370,-348.78907599,0.00019178,2]
[348603094,1736666968391,-292.30447844,0.00019178,2]
[348603697,1736667043743,-218.3058367,0.00019078,2]
[348603699,1736667043755,-300.0,0.00019177,2]
[348603702,1736667043767,-229.95552156,0.00019178,2]
[348603704,1736667043779,-501.39363403,0.00019178,2]
[348603706,1736667043791,-500.0,0.00019178,2]
[348603709,1736667043804,-500.0,0.00019178,2]
[348603711,1736667043816,-500.0,0.00019178,2]
[348603713,1736667043828,-1366.86,0.00019178,2]
[348603716,1736667043840,-507.82779011,0.00019178,2]
[348603718,1736667043853,-500.0,0.00019178,2]
[348603720,1736667043863,-500.0,0.00019178,2]
[348603722,1736667043872,-969.57721761,0.00019178,2]
[348603801,1736667044598,-420.06802352,0.00019178,2]
[348603805,1736667044621,-26.22975452,0.00019178,2]
[348604267,1736667049141,-1036.59500435,0.00019178,2]
[348604269,1736667049151,-500.0,0.00019178,2]
[348604270,1736667049160,-277.6134284,0.00019178,2]
[348604276,1736667049201,-222.3865716,0.00019178,2]
[348604278,1736667049210,-541.94,0.00019178,2]
[348604280,1736667049219,-504.3225967,0.00019178,2]
[348604282,1736667049228,-500.0,0.00019178,2]
[348604284,1736667049238,-514.13943254,0.00019178,2]
[348604286,1736667049247,-500.0,0.00019178,2]
[348604288,1736667049257,-500.0,0.00019178,2]
[348604290,1736667049266,-500.0,0.00019178,2]
[348604292,1736667049277,-500.0,0.00019178,2]